Workbook

Sheet LEESWIJZER (hidden)
B1: Beïnvloedt keuzelijsten
B2: Informatief
B3: Heeft link met / stuurt vraag
B4: Bepaalt de score
A6: Onder kwestbare functies worden onder meer begrepen: scholen, rusthuizen, ziekenhuizen, kindercrèches, …

Sheet mob (hidden)
A1: Mobiliteitsprofiel | B1: =SUM(C6:C42)/COUNT(C6:C42) -> 2.75
A3: algemene opmerking: onderstaande als u-vraag te formuleren! Zoals hieronder
A4: algemene opmerking: in vragenlijst moet er duiding zijn (met vraagteken-icoon)
H5: basis voor layout | J5: resultaten
C6: 2 | E6: wat is een vrachtwagen? +3,5 ton? Misschien interactie met vraag rond type transport (vb: hoge frequente in combinatie +3,5 ton versterkt negatieve score) | H6: scores | I6: onderverdeling | J6: =A1 -> Mobiliteitsprofiel | K6: =A44 -> Bereikbaarheidsprofiel
E7: wat is een beweging? inkomende en uitgaande tellen als twee | H7: 0 | I7: 20 | J7: =B1/5 -> 0.55 | K7: =B44/H12 -> 0.6
E8: bovengrenzen te bepalen | H8: 1 | I8: 20 | J8: 0.01 | K8: 0.01
H9: 2 | I9: 20 | J9: =J12-J8-J7 -> 0.44 | K9: =K12-K8-K7 -> 0.39
H10: 3 | I10: 20 | K10: 0
C11: 2 | E11: bestelwagen | H11: 4 | I11: 20 | K11: 0
E12: lichte vracht | H12: 5 | I12: 100 | J12: 1 | K12: 1
E13: trekker oplegger
C16: 3
A21: gemiddeld aantal vrachtbewegingen tijdens een dag in het weekend of op feestdagen | C21: 4 | D21: 0 tot 1 beweging per dag | E21: moeten wel kijken hoe het vroeger was?
D22: 1 tot 5 bewegingen per dag | E22: vb. vroeger 50 per dag > nu 10 per dag > niet noodzakelijk slecht
D23: 5 tot 10 bewegingen per dag | E23: = intensiteitsverandering
D24: Méér dan 10 bewegingen per dag
C26: 2
C29: 4
A36: U ontvangt bezoekers… | C36: 1
A39: U ontvangt | C39: 4
E42: nog meer?
A44: Bereikbaarheidsprofiel | B44: =SUM(C46:C61)/COUNT(C46:C61) -> 3
A46: De site ligt | C46: 3 | E46: misschien geen goede vraag…
A48: Link met hogere wegennet?
A49: Hoe ver ligt het van een bovenlokale vrachtroute?
A51: De site ligt | C51: 2 | D51: in de kern van de gemeente
D52: in de rand van de kern
A54: De site ligt | C54: 3 | D54: aan een hoofdas
D55: in de buurt van een hoofdas
D56: enkele straten verwijderd van een hoofdas
A58: Hoe belangrijk is de nabijheid van een bushalte of station | C58: 4 | D58: Niet belangrijk
A59: Relevant? | D59: Matig belangrijk
D60: Belangrijk
D61: Zeer belangrijk
B63: breedte wegenis / school / brede bochten / moeilijke kruispunten / zwakke weggebruikers / woonomgeving / … | D63: Goed
D64: Matig
D65: Slecht

Sheet resterende vragen & opmerkingen (hidden)
A1: Vragen in verband met procedure en methode
A2: Lightversie? Getrapte benadering > bij gebrek aan informatie moet je een globale sleutelvraag moeten kunnen stellen? | B2: Idee: vragen niet laten meetellen in score indien keuze voor "onbekend"
A3: Voor wat zet je de tool in? Wanneer gebruiken? Je mag de tool niet "oneigenlijk" gebruiken. | B3: Deliverable: Omschrijven in startpagina: logo / toelichting / disclaimer / … niet zinvol voor bepaalde duidelijke gevallen (cf. uitsluitingscriteria - vb. SEVESO)
A4: SHO: hoe gaat dit in zijn werk? WDG > wie rond de tafel / escalatie? / … plaats in discussie? | B4: Lean-traject met WDG
A5: Wie vult in / hoe wordt gecommuniceerd naar ondernemer? SHO/SVE > met resultaten naar CBS gaan? | B5: Gemeente vult in, vraagt info aan ondernemer. Escalatie naar CBS > te bepalen in proces flow lean traject
A7: Criteriavoorstellen, weliswaar nog niet ingevoegd
A8: Te verwachten bouwhoogte (hoogste onderdeel) in relatie tot context (lager/hoger/even hoog) | B8: afwachten hoe gebruiker reageert op gestelde vragen
A9: Doorwaadbaarheid van de site: te gedetailleerde vraag? | B9: afwachten hoe gebruiker reageert op gestelde vragen
A10: Wordt er in shifts gewerkt? Aantal personeelsleden? | B10: Evalueren indien score of niet: misschien meenemen als informatief element
A11: Wordt er in het weekend gewerkt?
A12: Track record? Antecedenten? | B12: Waren er klachten op de vorige locatie?
A13: quid vrachtbewegingen in het weekend?
A14: Herkomst personeel > lokale verankering?
A16: Vragen in verband met inhoud en werking van het instrument
A17: Handleiding superbelangrijk!!! handleiding via hyperlink naar cel op ander blad en omgekeerd om terug te keren
A18: Begrip “nabijheid” nog te definiëren bij lokale klanten en leveranciers +
A19: "Onbekend" in dropdowns in te voeren? Quid puntenscores? | B19: Indien "onbekend" > conditional formating orange > + geen bijdrage in score en gemiddelde
A20: resetknop om alles terug op kies te zetten? | B20: wel resetknop met macro
A21: consistentie in vraagstelling: stelling of vraag? | B21: voorlopig gemengd
A22: negatieve waardes in de score's mogelijk, zoals bijvoorbeeld bij "visuele verbetering ten aanzien van vroeger" = compensatie negatievere punten | B22: niet negatief
A23: probleem met ongelijke scoreverdeling: ene vraag maximum score 3, andere vraag maximum score 4 > welke getallen op wijzerplaat? | B23: telkens zelfde range (vb. 3) en onder te verdelen naargelang aantal keuzemogelijkheden
A24: gewichten: wijzerplaat moet zich automatisch aan de wijzerplaat kunnen aanpassen | B24: mouw aan te passen > evt. via procentuele verdeling? + gewichten in woorden in plaats van cijfers
A25: Quid uitsluitingscriteria? Zoals Evolis | B25: niet relevant
A26: ja/nee vragen moeten nog opgelost worden qua puntenscoring | B26: unieke waarden: met spaties werken als truuk - joepiejee
A27: indien gewicht wordt toegekend in functie van eigen voorkeuren: quid opnieuw in te voeren indien nieuw dossier? Of zelfde excel? Quid reset? | B27: cf. resetknop
A28: gewicht vertalen: belangrijk, minder belangrijk, belangrijker in plaats van getallen
A31: definities definiëren

Sheet WELKOM
B22: WAT | D22: Het afwegingsinstrument heeft als doel de interne afstemming binnen de gemeente tussen diensten stedenbouw, milieu en economie in het kader van een vestigingsaanvraag / uitbreidingsvraag van een bedrijf in de kern te bevorderen.
D23: Dergelijk afwegingsinstrument laat de gemeente toe om ruimtevragen, in plaats van fragmentair, in al zijn aspecten af te wegen. Het instrument faciliteert het overleg tussen de diensten en onderbouwt de uiteindelijke beslissing. Het afwegingsinstrument wordt immers ingevuld met de input vanuit de verschillende diensten en laat toe om interne discussies te verzakelijken en integraal te voeren op basis van rationele argumenten.
D24: Het afwegingsinstrument bevat een set van verschillende vragen verdeeld over de 5 gedefinieerde kenmerken van het verweefbaarheids- en verwevingsprofiel: ruimte, milieu, mobiliteit, sociaal en economie. Via deze vragen worden de kenmerken van een activiteit ‘gemeten’. Per kenmerk en/of (bv. wordt een score bepaald. Op basis daarvan kan worden geconcludeerd of herverweving mogelijk is en onder welke voorwaarden.
B26: HOE | D26: 1. vul de antwoorden in bij de rode vlakken.
D27: 2. pas eventueel de weging aan (minder belangrijk, belangrijk, zeer belangrijk).
D28: 3. de antwoorden en de wegingen kunnen via de knoppen worden gereset.
D29: 4. door het invullen van de antwoorden worden de scores aangepast
D30: 5. via 'resultaten' worden alle scores overzichtelijk gevisualiseerd

Sheet INPUT
B16: BASISGEGEVENS
C17: Naam dossierbeheerder
C18: Namen betrokken personen
C19: Datum opstart dossier
B20: VAN DE LOCATIE
C21: Naam
C22: Adres
C23: Huidige eigenaar
B24: VAN DE GEÏNTERESSEERDE PARTIJ
C25: Naam
C26: Adres
C27: Contactpersoon
C28: Telefoon
C29: Email
B31: RUIMTELIJK KENMERKEN
B32: VAN DE LOCATIE
C33: Zijn er kwetsbare functies binnen een straal van 200 meter rond de site? | D33: belangrijk | E33: kies
C34: Welke bestemming heeft de site? | D34: belangrijk | E34: kies
C35: Ligt de site in een stad of een gemeente? | E35: kies
C36: In welk type buurt ligt de site? | D36: belangrijk | E36: kies
C37: Hoe groot is de site? | D37: belangrijk | E37: kies
C38: Wat is de actuele graad van bebouwde oppervlakte op de site? | E38: kies
C39: Is er onroerend erfgoed op de site aanwezig? | E39: kies
C40: In welke staat is de site vandaag? | E40: kies
C41: Is er op de site voldoende ruimte om te bufferen? | D41: belangrijk | E41: kies
B42: VAN DE GEPLANDE ACTIVITEIT
C43: Wat is de visuele impact van het project op de omgeving? | D43: belangrijk | E43: kies
C44: In welke mate moet de bestaande toestand aan de geplande activiteiten worden aangepast? | D44: belangrijk | E44: kies
C45: Vereisen de geplande activiteiten opslag in open lucht? | D45: belangrijk | E45: kies
C46: Kan het aanwezige erfgoed op de site behouden worden? | D46: belangrijk | E46: kies
B48: SOCIALE KENMERKEN
B49: VAN DE GEPLANDE ACTIVITEIT
C50: Draagt het bedrijf bij tot de uitstraling van de gemeente? | D50: belangrijk | E50: kies
C51: Heeft het bedrijf een publieksfunctie? | D51: belangrijk | E51: kies
C52: Is een gedeeld gebruik van delen van de bedrijfssite mogelijk en bespreekbaar? | D52: belangrijk | E52: kies
C53: Komt de zaakvoerder of een conciërge bij het bedrijf wonen? | D53: belangrijk | E53: kies
B55: ECONOMISCHE KENMERKEN
B56: VAN DE GEPLANDE ACTIVITEIT
C57: Tot welke economische sector behoort het bedrijf? | E57: kies
C58: Is de belangrijkste doelgroep van het bedrijf particulieren (B2C) of professionelen (B2B) | E58: kies
C59: Laat de onderneming zich binnen een regionaal clusterbeleid inschrijven? | D59: belangrijk | E59: kies
C60: In welke mate hangt het bedrijf af van lokale (dus nabije) leveranciers? | D60: belangrijk | E60: kies
C61: In welke mate hangt het bedrijf af van lokale (dus nabije) klanten? | D61: belangrijk | E61: kies
C62: Welke betekenis hebben de geplande investeringen van het bedrijf? | D62: belangrijk | E62: kies
C63: Waar is het bedrijf momenteel gevestigd? | D63: belangrijk | E63: kies
C64: Hoeveel (bijkomende) tewerkstelling brengt de investering met zich mee? | D64: belangrijk | E64: kies
C65: Hoeveel groeimarge heeft de investering binnen de contouren van het terrein op basis van actuele groeicijfers? | D65: belangrijk | E65: kies
C66: Wat betekent de investering op vlak van gemeentelijke inkomsten? | D66: belangrijk | E66: kies
C67: Zijn er investeringen nodig vanuit de stad of gemeente om de investering te faciliteren? | D67: belangrijk | E67: kies
C68: Hoe groot is de kans op schade aan en/of slijtage van het publieke domein tijdens de exploitatie | D68: belangrijk | E68: kies
B70: KENMERKEN LEEFMILIEU
B71: VAN DE GEPLANDE ACTIVITEIT
C72: Vereisen de geplande activiteiten een milieuvergunning? | D72: belangrijk | E72: kies
C73: Vereisen de geplande activiteiten de opslag of behandeling van gevaarlijke stoffen? | D73: belangrijk | E73: kies
C74: Veroorzaken de geplande activiteiten luchtverontreiniging? | D74: belangrijk | E74: kies
C75: Veroorzaken de geplande activiteiten stofhinder? | D75: belangrijk | E75: kies
C76: Veroorzaken de geplande activiteiten geurhinder? | D76: belangrijk | E76: kies
C77: Veroorzaken de geplande activiteiten lichthinder? | D77: belangrijk | E77: kies
C78: Veroorzaken de geplande activiteiten geluidsoverlast? | D78: belangrijk | E78: kies
C79: Veroorzaken de geplande activiteiten trillingen? | D79: belangrijk | E79: kies
C80: Vereisen de geplande activiteiten meer verharde oppervlakte dan vandaag reeds op de site aanwezig is? | D80: belangrijk | E80: kies
B82: MOBILITEITSKENMERKEN
B83: VAN DE LOCATIE
C84: Hoe ver ligt de site van het hogere wegennet? | D84: belangrijk | E84: kies
C85: Wat is de kwaliteit van het ontsluitingstraject? | D85: belangrijk | E85: kies
B86: VAN DE GEPLANDE ACTIVITEIT
C87: Met welk type vrachtvervoer worden goederen hoofdzakelijk aan- en afgevoerd? | D87: belangrijk | E87: kies
C88: Hoeveel vrachtbewegingen zijn er binnen de courante werkuren (van 9 tot 16 uur)? | D88: belangrijk | E88: kies
C89: Hoeveel vrachtbewegingen zijn er 's morgens en 's avonds (van 6 tot 9 en van 16 tot 20 uur, samengeteld)? | D89: belangrijk | E89: kies
C90: Hoeveel vrachtbewegingen zijn er 's nachts (van 20 tot 6 uur) | D90: belangrijk | E90: kies
C91: In welke mate zijn de vrachtbewegingen gespreid in tijd? | D91: belangrijk | E91: kies
C92: Waar gebeurt het laden en lossen? | D92: belangrijk | E92: kies
C93: Wanneer gebeurt het laden en lossen? | D93: belangrijk | E93: kies
C94: Zullen de medewerkers op het eigen bedrijfsterrein kunnen parkeren? | D94: belangrijk | E94: kies
C95: Wordt er bij de geplande activiteiten in shifts gewerkt? | D95: belangrijk | E95: kies
C96: Hoeveel bezoekers ontvangt heb bedrijf? | D96: belangrijk | E96: kies

Sheet DATAVERWERKING (hidden)
B4: =INPUT!B31 -> RUIMTELIJK KENMERKEN
B5: =INPUT!B32 -> VAN DE LOCATIE | H5: score | I5: belang | J5: totaal
C6: =INPUT!#REF! ->  | D6: =INPUT!C33 -> Zijn er kwetsbare functies binnen een straal van 200 meter rond de site? | E6: =INPUT!D33 -> belangrijk | F6: =INPUT!E33 -> kies | H6: =VLOOKUP(F6,Range_vlookup,3,FALSE) -> 0 | I6: =IF(H6="x","x",VLOOKUP(E6,Range_vlookup,3,FALSE)) -> 1 | J6: =IF(H6="x","x",H6*I6) -> 0 | L6: =J20*(F20/I20)/F20 -> 0 | O6: schaal | P6: verdeling | Q6: score
C7: =INPUT!#REF! ->  | D7: =INPUT!C34 -> Welke bestemming heeft de site? | E7: =INPUT!D34 -> belangrijk | F7: =INPUT!E34 -> kies | H7: =VLOOKUP(F7,Range_vlookup,3,FALSE) -> 0 | I7: =IF(H7="x","x",VLOOKUP(E7,Range_vlookup,3,FALSE)) -> 1 | J7: =IF(H7="x","x",H7*I7) -> 0 | O7: 0 | P7: 20 | Q7: =L6/5 -> 0
C8: =INPUT!#REF! ->  | D8: =INPUT!C35 -> Ligt de site in een stad of een gemeente? | E8: =INPUT!D35 -> 0 | F8: =INPUT!E35 -> kies | O8: 1 | P8: 20 | Q8: 0.01
C9: =INPUT!#REF! ->  | D9: =INPUT!C36 -> In welk type buurt ligt de site? | E9: =INPUT!D36 -> belangrijk | F9: =INPUT!E36 -> kies | H9: =VLOOKUP(F9,Range_vlookup,3,FALSE) -> 0 | I9: =IF(H9="x","x",VLOOKUP(E9,Range_vlookup,3,FALSE)) -> 1 | J9: 0 | O9: 2 | P9: 20 | Q9: =Q12-Q8-Q7 -> 0.99
C10: =INPUT!#REF! ->  | D10: =INPUT!C37 -> Hoe groot is de site? | E10: =INPUT!D37 -> belangrijk | F10: =INPUT!E37 -> kies | H10: =VLOOKUP(F10,Range_vlookup,3,FALSE) -> 0 | I10: =IF(H10="x","x",VLOOKUP(E10,Range_vlookup,3,FALSE)) -> 1 | J10: 0 | O10: 3 | P10: 20 | Q10: 0
C11: =INPUT!#REF! ->  | D11: =INPUT!C38 -> Wat is de actuele graad van bebouwde oppervlakte op de site? | F11: =INPUT!E38 -> kies | O11: 4 | P11: 20 | Q11: 0
C12: =INPUT!#REF! ->  | D12: =INPUT!C39 -> Is er onroerend erfgoed op de site aanwezig? | F12: =INPUT!E39 -> kies | O12: 5 | P12: 100 | Q12: 1
C13: =INPUT!#REF! ->  | D13: =INPUT!C40 -> In welke staat is de site vandaag? | F13: =INPUT!E40 -> kies
C14: =INPUT!#REF! ->  | D14: =INPUT!C41 -> Is er op de site voldoende ruimte om te bufferen? | E14: =INPUT!D41 -> belangrijk | F14: =INPUT!E41 -> kies | H14: =VLOOKUP(F14,Range_vlookup,3,FALSE) -> 0 | I14: =IF(H14="x","x",VLOOKUP(E14,Range_vlookup,3,FALSE)) -> 1 | J14: 0
B15: =INPUT!B42 -> VAN DE GEPLANDE ACTIVITEIT
C16: =INPUT!#REF! ->  | D16: =INPUT!C43 -> Wat is de visuele impact van het project op de omgeving? | E16: =INPUT!D43 -> belangrijk | F16: =INPUT!E43 -> kies | H16: =VLOOKUP(F16,Range_vlookup,3,FALSE) -> 0 | I16: =IF(H16="x","x",VLOOKUP(E16,Range_vlookup,3,FALSE)) -> 1 | J16: 0
C17: =INPUT!#REF! ->  | D17: =INPUT!C44 -> In welke mate moet de bestaande toestand aan de geplande activiteiten worden aangepast? | E17: =INPUT!D44 -> belangrijk | F17: =INPUT!E44 -> kies | H17: =VLOOKUP(F17,Range_vlookup,3,FALSE) -> 0 | I17: =IF(H17="x","x",VLOOKUP(E17,Range_vlookup,3,FALSE)) -> 1 | J17: 0
C18: =INPUT!#REF! ->  | D18: =INPUT!C45 -> Vereisen de geplande activiteiten opslag in open lucht? | E18: =INPUT!D45 -> belangrijk | F18: =INPUT!E45 -> kies | H18: =VLOOKUP(F18,Range_vlookup,3,FALSE) -> 0 | I18: =IF(H18="x","x",VLOOKUP(E18,Range_vlookup,3,FALSE)) -> 1 | J18: 0
C19: =INPUT!#REF! ->  | D19: =INPUT!C46 -> Kan het aanwezige erfgoed op de site behouden worden? | E19: =INPUT!D46 -> belangrijk | F19: =INPUT!E46 -> kies | H19: =VLOOKUP(F19,Range_vlookup,3,FALSE) -> 0 | I19: =IF(H19="x","x",VLOOKUP(E19,Range_vlookup,3,FALSE)) -> 1 | J19: 0
F20: =IF(F12=LISTS!A45,9,8) -> 8 | H20: =SUM(H6:H19) -> 0 | I20: =SUM(I6:I19) -> 9 | J20: =SUM(J6:J19) -> 0
B21: =INPUT!B48 -> SOCIALE KENMERKEN
B22: =INPUT!B49 -> VAN DE GEPLANDE ACTIVITEIT | O22: schaal | P22: verdeling | Q22: score
C23: =INPUT!#REF! ->  | D23: =INPUT!C50 -> Draagt het bedrijf bij tot de uitstraling van de gemeente? | E23: =INPUT!D50 -> belangrijk | F23: =INPUT!E50 -> kies | H23: =VLOOKUP(F23,Range_vlookup,3,FALSE) -> 0 | I23: =IF(H23="x","x",VLOOKUP(E23,Range_vlookup,3,FALSE)) -> 1 | J23: =IF(H23="x","x",H23*I23) -> 0 | L23: =J27/I27 -> 0 | O23: 0 | P23: 20 | Q23: =L23/5 -> 0
C24: =INPUT!#REF! ->  | D24: =INPUT!C51 -> Heeft het bedrijf een publieksfunctie? | E24: =INPUT!D51 -> belangrijk | F24: =INPUT!E51 -> kies | H24: =VLOOKUP(F24,Range_vlookup,3,FALSE) -> 0 | I24: =IF(H24="x","x",VLOOKUP(E24,Range_vlookup,3,FALSE)) -> 1 | J24: 0 | O24: 1 | P24: 20 | Q24: 0.01
C25: =INPUT!#REF! ->  | D25: =INPUT!C52 -> Is een gedeeld gebruik van delen van de bedrijfssite mogelijk en bespreekbaar? | E25: =INPUT!D52 -> belangrijk | F25: =INPUT!E52 -> kies | H25: =VLOOKUP(F25,Range_vlookup,3,FALSE) -> 0 | I25: =IF(H25="x","x",VLOOKUP(E25,Range_vlookup,3,FALSE)) -> 1 | J25: 0 | O25: 2 | P25: 20 | Q25: =Q28-Q24-Q23 -> 0.99
C26: =INPUT!#REF! ->  | D26: =INPUT!C53 -> Komt de zaakvoerder of een conciërge bij het bedrijf wonen? | E26: =INPUT!D53 -> belangrijk | F26: =INPUT!E53 -> kies | H26: =VLOOKUP(F26,Range_vlookup,3,FALSE) -> 0 | I26: =IF(H26="x","x",VLOOKUP(E26,Range_vlookup,3,FALSE)) -> 1 | J26: 0 | O26: 3 | P26: 20 | Q26: 0
F27: =IF(F19=LISTS!A52,9,8) -> 8 | H27: =SUM(H23:H26) -> 0 | I27: =SUM(I23:I26) -> 4 | J27: 0 | O27: 4 | P27: 20 | Q27: 0
B28: =INPUT!B55 -> ECONOMISCHE KENMERKEN | O28: 5 | P28: 100 | Q28: 1
B29: =INPUT!B56 -> VAN DE GEPLANDE ACTIVITEIT
C30: =INPUT!#REF! ->  | D30: =INPUT!C57 -> Tot welke economische sector behoort het bedrijf? | F30: =INPUT!E57 -> kies | L30: =J42/I42 -> 0
C31: =INPUT!#REF! ->  | D31: =INPUT!C58 -> Is de belangrijkste doelgroep van het bedrijf particulieren (B2C) of professionelen (B2B) | F31: =INPUT!E58 -> kies
C32: =INPUT!#REF! ->  | D32: =INPUT!C59 -> Laat de onderneming zich binnen een regionaal clusterbeleid inschrijven? | E32: =INPUT!D59 -> belangrijk | F32: =INPUT!E59 -> kies | H32: =VLOOKUP(F32,Range_vlookup,3,FALSE) -> 0 | I32: =IF(H32="x","x",VLOOKUP(E32,Range_vlookup,3,FALSE)) -> 1 | J32: =IF(H32="x","x",H32*I32) -> 0 | O32: schaal | P32: verdeling | Q32: score
C33: =INPUT!#REF! ->  | D33: =INPUT!C60 -> In welke mate hangt het bedrijf af van lokale (dus nabije) leveranciers? | E33: =INPUT!D60 -> belangrijk | F33: =INPUT!E60 -> kies | H33: 0 | I33: 1 | J33: 0 | O33: 0 | P33: 20 | Q33: =L30/5 -> 0
C34: =INPUT!#REF! ->  | D34: =INPUT!C61 -> In welke mate hangt het bedrijf af van lokale (dus nabije) klanten? | E34: =INPUT!D61 -> belangrijk | F34: =INPUT!E61 -> kies | H34: 0 | I34: 1 | J34: 0 | O34: 1 | P34: 20 | Q34: 0.01
C35: =INPUT!#REF! ->  | D35: =INPUT!C62 -> Welke betekenis hebben de geplande investeringen van het bedrijf? | E35: =INPUT!D62 -> belangrijk | F35: =INPUT!E62 -> kies | H35: 0 | I35: 1 | J35: 0 | O35: 2 | P35: 20 | Q35: =Q38-Q34-Q33 -> 0.99
C36: =INPUT!#REF! ->  | D36: =INPUT!C63 -> Waar is het bedrijf momenteel gevestigd? | E36: =INPUT!D63 -> belangrijk | F36: =INPUT!E63 -> kies | H36: 0 | I36: 1 | J36: 0 | O36: 3 | P36: 20 | Q36: 0
C37: =INPUT!#REF! ->  | D37: =INPUT!C64 -> Hoeveel (bijkomende) tewerkstelling brengt de investering met zich mee? | E37: =INPUT!D64 -> belangrijk | F37: =INPUT!E64 -> kies | H37: 0 | I37: 1 | J37: 0 | O37: 4 | P37: 20 | Q37: 0
C38: =INPUT!#REF! ->  | D38: =INPUT!C65 -> Hoeveel groeimarge heeft de investering binnen de contouren van het terrein op basis van actuele groeicijfers? | E38: =INPUT!D65 -> belangrijk | F38: =INPUT!E65 -> kies | H38: 0 | I38: 1 | J38: 0 | O38: 5 | P38: 100 | Q38: 1
C39: =INPUT!#REF! ->  | D39: =INPUT!C66 -> Wat betekent de investering op vlak van gemeentelijke inkomsten? | E39: =INPUT!D66 -> belangrijk | F39: =INPUT!E66 -> kies | H39: 0 | I39: 1 | J39: 0
C40: =INPUT!#REF! ->  | D40: =INPUT!C67 -> Zijn er investeringen nodig vanuit de stad of gemeente om de investering te faciliteren? | E40: =INPUT!D67 -> belangrijk | F40: =INPUT!E67 -> kies | H40: 0 | I40: 1 | J40: 0
C41: =INPUT!#REF! ->  | D41: =INPUT!C68 -> Hoe groot is de kans op schade aan en/of slijtage van het publieke domein tijdens de exploitatie | E41: =INPUT!D68 -> belangrijk | F41: =INPUT!E68 -> kies | H41: 0 | I41: 1 | J41: 0
H42: =SUM(H32:H41) -> 0 | I42: =SUM(I32:I41) -> 10 | J42: 0
B43: =INPUT!B70 -> KENMERKEN LEEFMILIEU
B44: =INPUT!B71 -> VAN DE GEPLANDE ACTIVITEIT
C45: =INPUT!#REF! ->  | D45: =INPUT!C72 -> Vereisen de geplande activiteiten een milieuvergunning? | E45: =INPUT!D72 -> belangrijk | F45: =INPUT!E72 -> kies | H45: =VLOOKUP(F45,Range_vlookup,3,FALSE) -> 0 | I45: =IF(H45="x","x",VLOOKUP(E45,Range_vlookup,3,FALSE)) -> 1 | J45: =IF(H45="x","x",H45*I45) -> 0 | L45: =J54/I54 -> 0
C46: =INPUT!#REF! ->  | D46: =INPUT!C73 -> Vereisen de geplande activiteiten de opslag of behandeling van gevaarlijke stoffen? | E46: =INPUT!D73 -> belangrijk | F46: =INPUT!E73 -> kies | H46: 0 | I46: 1 | J46: 0 | O46: schaal | P46: verdeling | Q46: score
C47: =INPUT!#REF! ->  | D47: =INPUT!C74 -> Veroorzaken de geplande activiteiten luchtverontreiniging? | E47: =INPUT!D74 -> belangrijk | F47: =INPUT!E74 -> kies | H47: 0 | I47: 1 | J47: 0 | O47: 0 | P47: 20 | Q47: =L45/5 -> 0
C48: =INPUT!#REF! ->  | D48: =INPUT!C75 -> Veroorzaken de geplande activiteiten stofhinder? | E48: =INPUT!D75 -> belangrijk | F48: =INPUT!E75 -> kies | H48: 0 | I48: 1 | J48: 0 | O48: 1 | P48: 20 | Q48: 0.01
C49: =INPUT!#REF! ->  | D49: =INPUT!C76 -> Veroorzaken de geplande activiteiten geurhinder? | E49: =INPUT!D76 -> belangrijk | F49: =INPUT!E76 -> kies | H49: 0 | I49: 1 | J49: 0 | O49: 2 | P49: 20 | Q49: =Q52-Q48-Q47 -> 0.99
C50: =INPUT!#REF! ->  | D50: =INPUT!C77 -> Veroorzaken de geplande activiteiten lichthinder? | E50: =INPUT!D77 -> belangrijk | F50: =INPUT!E77 -> kies | H50: 0 | I50: 1 | J50: 0 | O50: 3 | P50: 20 | Q50: 0
C51: =INPUT!#REF! ->  | D51: =INPUT!C78 -> Veroorzaken de geplande activiteiten geluidsoverlast? | E51: =INPUT!D78 -> belangrijk | F51: =INPUT!E78 -> kies | H51: 0 | I51: 1 | J51: 0 | O51: 4 | P51: 20 | Q51: 0
C52: =INPUT!#REF! ->  | D52: =INPUT!C79 -> Veroorzaken de geplande activiteiten trillingen? | E52: =INPUT!D79 -> belangrijk | F52: =INPUT!E79 -> kies | H52: 0 | I52: 1 | J52: 0 | O52: 5 | P52: 100 | Q52: 1
C53: =INPUT!#REF! ->  | D53: =INPUT!C80 -> Vereisen de geplande activiteiten meer verharde oppervlakte dan vandaag reeds op de site aanwezig is? | E53: =INPUT!D80 -> belangrijk | F53: =INPUT!E80 -> kies | H53: 0 | I53: 1 | J53: 0
H54: =SUM(H45:H53) -> 0 | I54: =SUM(I45:I53) -> 9 | J54: =SUM(J45:J53) -> 0
B55: =INPUT!B82 -> MOBILITEITSKENMERKEN
B56: =INPUT!B83 -> VAN DE LOCATIE
C57: =INPUT!#REF! ->  | D57: =INPUT!C84 -> Hoe ver ligt de site van het hogere wegennet? | E57: =INPUT!D84 -> belangrijk | F57: =INPUT!E84 -> kies | H57: =VLOOKUP(F57,Range_vlookup,3,FALSE) -> 0 | I57: =IF(H57="x","x",VLOOKUP(E57,Range_vlookup,3,FALSE)) -> 1 | J57: =IF(H57="x","x",H57*I57) -> 0 | L57: =J70/I70 -> 0 | O57: schaal | P57: verdeling | Q57: score
C58: =INPUT!#REF! ->  | D58: =INPUT!C85 -> Wat is de kwaliteit van het ontsluitingstraject? | E58: =INPUT!D85 -> belangrijk | F58: =INPUT!E85 -> kies | H58: =VLOOKUP(F58,Range_vlookup,3,FALSE) -> 0 | I58: =IF(H58="x","x",VLOOKUP(E58,Range_vlookup,3,FALSE)) -> 1 | J58: 0 | O58: 0 | P58: 20 | Q58: =L57/5 -> 0
B59: =INPUT!B86 -> VAN DE GEPLANDE ACTIVITEIT | O59: 1 | P59: 20 | Q59: 0.01
C60: =INPUT!#REF! ->  | D60: =INPUT!C87 -> Met welk type vrachtvervoer worden goederen hoofdzakelijk aan- en afgevoerd? | E60: =INPUT!D87 -> belangrijk | F60: =INPUT!E87 -> kies | H60: =VLOOKUP(F60,Range_vlookup,3,FALSE) -> 0 | I60: =IF(H60="x","x",VLOOKUP(E60,Range_vlookup,3,FALSE)) -> 1 | J60: =IF(H60="x","x",H60*I60) -> 0 | O60: 2 | P60: 20 | Q60: =Q63-Q59-Q58 -> 0.99
C61: =INPUT!#REF! ->  | D61: =INPUT!C88 -> Hoeveel vrachtbewegingen zijn er binnen de courante werkuren (van 9 tot 16 uur)? | E61: =INPUT!D88 -> belangrijk | F61: =INPUT!E88 -> kies | H61: 0 | I61: 1 | J61: 0 | O61: 3 | P61: 20 | Q61: 0
C62: =INPUT!#REF! ->  | D62: =INPUT!C89 -> Hoeveel vrachtbewegingen zijn er 's morgens en 's avonds (van 6 tot 9 en van 16 tot 20 uur, samengeteld)? | E62: =INPUT!D89 -> belangrijk | F62: =INPUT!E89 -> kies | H62: 0 | I62: 1 | J62: 0 | O62: 4 | P62: 20 | Q62: 0
C63: =INPUT!#REF! ->  | D63: =INPUT!C90 -> Hoeveel vrachtbewegingen zijn er 's nachts (van 20 tot 6 uur) | E63: =INPUT!D90 -> belangrijk | F63: =INPUT!E90 -> kies | H63: 0 | I63: 1 | J63: 0 | O63: 5 | P63: 100 | Q63: 1
C64: =INPUT!#REF! ->  | D64: =INPUT!C91 -> In welke mate zijn de vrachtbewegingen gespreid in tijd? | E64: =INPUT!D91 -> belangrijk | F64: =INPUT!E91 -> kies | H64: 0 | I64: 1 | J64: 0
C65: =INPUT!#REF! ->  | D65: =INPUT!C92 -> Waar gebeurt het laden en lossen? | E65: =INPUT!D92 -> belangrijk | F65: =INPUT!E92 -> kies | H65: 0 | I65: 1 | J65: 0
C66: =INPUT!#REF! ->  | D66: =INPUT!C93 -> Wanneer gebeurt het laden en lossen? | E66: =INPUT!D93 -> belangrijk | F66: =INPUT!E93 -> kies | H66: 0 | I66: 1 | J66: 0
C67: =INPUT!#REF! ->  | D67: =INPUT!C94 -> Zullen de medewerkers op het eigen bedrijfsterrein kunnen parkeren? | E67: =INPUT!D94 -> belangrijk | F67: =INPUT!E94 -> kies | H67: 0 | I67: 1 | J67: 0
C68: =INPUT!#REF! ->  | D68: =INPUT!C95 -> Wordt er bij de geplande activiteiten in shifts gewerkt? | E68: =INPUT!D95 -> belangrijk | F68: =INPUT!E95 -> kies | H68: 0 | I68: 1 | J68: 0
C69: =INPUT!#REF! ->  | D69: =INPUT!C96 -> Hoeveel bezoekers ontvangt heb bedrijf? | E69: =INPUT!D96 -> belangrijk | F69: =INPUT!E96 -> kies | H69: 0 | I69: 1 | J69: 0
H70: =SUM(H57:H69) -> 0 | I70: =SUM(I57:I69) -> 12 | J70: =SUM(J57:J69) -> 0

Sheet LISTS (hidden)
A1: R01 - kwestsbare functies
A2: kies | C2: 0
A3: neen, er zijn geen kwestbare functies | C3: 0 | E3: In een straal van 200 meter rond de site zijn er geen kwetsbare functies
A4: ja, er zijn kwetsbare functies | C4: 5 | E4: In een straal van 200 meter zijn er kwetsbare functies
A5: antwoord onbekend | C5: x | E5: Het is niet bekend of er in een straat van 200 meter kwetsbare functies zijn
A6: R02 - bestemming
A7: kies | C7: 0
A8: industriegebied (paars) | C8: 0 | E8: De site heeft als stedenbouwkundige bestemming "industriegebied"
A9: woongebied (rood) | C9: 5 | E9: De site heeft als stedenbouwkundige bestemming "woongebied"
A10: andere | C10: 5 | E10: De site heeft een andere stedenbouwkundige bestemming dan "industriegebied" of "woongebied"
A11: R03 - stad of gemeente
A12: kies
A13: stad
A14: gemeente
A15: R04a - type buurt in stad
A16: kies | C16: 0
A17: gemengd weefsel langs invalsweg | C17: 0 | E17: De site ligt in het gemengde weefsel langs een invalsweg
A18: 19de eeuwse stadsrand | C18: 2.5 | E18: De site ligt in de 19de eeuwse stadsrand
A19: groene / residentiële rand van de stad | C19: 2.5 | E19: De site ligt in de groene en residentiële rand van de stad
A20: historische binnenstad | C20: 5 | E20: De site ligt in de historische binnenstad
A21: R04b - type buurt in gemeente
A22: kies | C22: 0
A23: gemengd weefsel langs invalsweg | C23: 0 | E23: De site ligt in het gemengde weefsel langs een invalsweg
A24: groene / residentiële rand van de gemeente | C24: 2.5 | E24: De site ligt in de groene en residentiële rand van de gemeente
A25: centrum | C25: 5 | E25: De site ligt in het centrum van de gemeente
A26: R05 - oppervlakte
A27: kies | C27: 0
A28: < 250 m² | C28: 0 | E28: De site is kleiner dan 250 m²
A29: < 500 m² | C29: =5/6 -> 0.8333333333 | E29: De site is kleiner dan 500 m²
A30: < 1000 m² | C30: =C29+5/6 -> 1.666666667 | E30: De site is kleiner dan 1000 m²
A31: < 2000 m² | C31: =C30+5/6 -> 2.5 | E31: De site is kleiner dan 2000 m²
A32: < 5000 m² | C32: =C31+5/6 -> 3.333333333 | E32: De site is kleiner dan 5000 m²
A33: < 10.000 m² | C33: =C32+5/6 -> 4.166666667 | E33: De site is kleiner dan 10.000 m²
A34: > 10.000 m² | C34: =C33+5/6 -> 5 | E34: De site is groter dan 10.000 m²
A35: R06 - bebouwingsgraad
A36: kies
A37: circa 0 procent | E37: De site is niet bebouwd
A38: circa 25 procent | E38: De site is voor ongeveer 25 procent bebouwd
A39: circa 50 procent | E39: De site is voor ongeveer de helft bebouwd
A40: circa 75 procent | E40: De site is voor ongeveer 75 procent bebouwd
A41: circa 100 procent | E41: De site is volledig bebouwd
A42: antwoord onbekend | E42: De bebouwingsgraad van de site is niet bekend
A43: R07 - aanwezigheid erfgoed
A44: kies
A45: ja, er is erfgoed aanwezig | E45: Op de site is er onroerend erfgoed aanwezig
A46: neen, er is geen erfgoed aanwezig | E46: Op de site is er geen onroerend erfgoed aanwezig
A47: antwoord onbekend | E47: Het is niet bekend of er op de site onroerend erfgoed aanwezig is
A48: R08 - staat van de site
A49: kies
A50: de site is nieuw en niet verwaarloosd | E50: De site is nieuw en niet verwaarloosd
A51: de site is nieuw maar verwaarloosd | E51: De site is nieuw maar wel verwaarloosd
A52: de site is verouderd maar niet verwaarloosd | E52: De site is verouderd maar niet verwaarloosd
A53: de site is verouderd en verwaarloosd | E53: De site is verouderd en ook verwaarloosd
A54: antwoord onbekend | E54: Het is niet bekend in welke mate de site verouderd en/of verwaarloosd is
A55: R09 - buffering
A56: kies | C56: 0
A57: ja, volledig | C57: 0 | E57: De site biedt voldoende ruimte om te bufferen
A58: ja, gedeeltelijk | C58: 2.5 | E58: De site biedt gedeeltelijke ruimte om te bufferen
A59: neen, geen buffering op eigen terrein mogelijk | C59: 5 | E59: De site biedt geen mogelijkheden om te bufferen
A60: antwoord onbekend | C60: x | E60: Het is niet bekend of de site mogelijkheden biedt om te bufferen
A61: R10 - visuele impact
A62: kies | C62: 0
A63: het geplande project heeft een positieve visuele impact | C63: 0 | E63: Het geplande project heeft een positieve visuele impact
A64: het geplande project heeft een neutrale visuele impact | C64: 2.5 | E64: Het geplande project heeft een neutrale visuele impact
A65: het geplande project heeft een negatieve visuele impact | C65: 5 | E65: Het geplande project heeft een negatieve visuele impact
A66: antwoord onbekend | C66: x | E66: Het is niet bekend welke de visuele impact zal zijn van het geplande project
A67: R11 - inrichtingsplannen
A68: kies | C68: 0
A69: de site blijft ongewijzigd | C69: =IF(OR(INPUT!$E$40=$A$49,INPUT!$E$40=$A$51,INPUT!$E$40=$A$53),5,0) -> 5 | E69: De inrichting van de site blijft ongewijzigd
A70: de site wordt opgefrist | C70: =IF(OR(INPUT!$E$40=$A$49,INPUT!$E$40=$A$51,INPUT!$E$40=$A$53),2.5,0) -> 2.5 | E70: De site wordt opgefrist
A71: de site wordt volledig vernieuwd | C71: =IF(OR(INPUT!$E$40=$A$49,INPUT!$E$40=$A$51,INPUT!$E$40=$A$53),0,5) -> 0 | E71: De site wordt volledig vernieuwd
A72: antwoord onbekend | C72: x | E72: Het is niet bekend of er vernieuwingswerken op de site zullen worden uitgevoerd
A73: R12 - opslag
A74: kies | C74: 0
A75: het geplande project vereist geen opslag in open lucht | C75: 0 | E75: Het geplande project vereist geen opslag in open lucht
A76: het geplande project vereist opslag in open lucht | C76: 5 | E76: Het geplande project vereist opslag in open lucht
A77: antwoord onbekend | C77: x | E77: Het is niet bekend of het project opslag in open lucht vereist
A78: R13 - behoud erfgoed
A79: kies | C79: 0
A80: het bouwkundig erfgoed kan behouden worden | C80: 0 | E80: Het bouwkundig erfgoed kan behouden worden
A81: het bouwkundig erfgoed moet worden aangetast | C81: 2.5 | E81: Het bouwkundig erfgoed moet worden aangetast
A82: het bouwkundig erfgoed moet verdwijnen | C82: 5 | E82: Het bouwkundig erfgoed moet verdwijnen
A83: antwoord onbekend | C83: x | E83: Het is niet bekend in welke mate het onroerend erfgoed wordt behouden
A85: S01 - uitstraling
A86: kies | C86: 0
A87: het bedrijf draagt bij tot de uitstraling van de gemeente | C87: 0
A88: het bedrijf draagt beperkt bij tot de uitstraling van de gemeente | C88: 2.5
A89: het bedrijf draagt niet bij tot de uitstraling van de gemeente | C89: 5
A90: antwoord onbekend | C90: x
A91: S02 - publieksfunctie
A92: kies | C92: 0
A93: de activiteiten hebben een publieksfunctie | C93: 0
A94: de activiteiten hebben geen publieksfunctie | C94: 5
A95: antwoord onbekend | C95: x
A96: S03 - collectief gebruik
A97: kies | C97: 0
A98: dit is mogelijk en bespreekbaar | C98: 0
A99: dit is niet mogelijk | C99: 0
A100: dit is mogelijk maar niet bespreekbaar | C100: 5
A101: antwoord onbekend | C101: x
A102: S04 - bewoning op de site
A103: ja, op de site zal er iemand wonen | C103: 0
A104: neen, op de site zal er niemand wonen | C104: 5
A105: antwoord onbekend | C105: x
A107: E01 - sector
A108: kies
A109: industrie
A110: ambachten
A111: handel
A112: diensten
A113: bouwnijverheid
A114: E02 - doelgroep
A115: kies
A116: B2B
A117: B2C
A118: E03 - cluster
A119: ja, de activiteiten maken deel uit van een regionale cluster | C119: 0
A120: neen, de activiteiten maken geen deel uit van een regionale cluster | C120: 5
A121: antwoord onbekend | C121: x
A122: E04/E05 - afhankelijkheid klanten en leveranciers
A123: kies | C123: 0
A124: volledig | C124: 0
A125: overwegend | C125: =5/3*1 -> 1.666666667
A126: in mindere mate | C126: =5/3*2 -> 3.333333333
A127: niet | C127: 5
A128: antwoord onbekend | C128: x
A129: E06 - geplande investeringen
A130: kies | C130: 0
A131: de investering is aanzienlijk | C131: 0
A132: de investering is beperkt | C132: 5
A133: antwoord onbekend | C133: x
A134: E07 - huidige vestiging
A135: kies
A136: in dezelfde gemeente
A137: in dezelfde regio
A138: buiten de regio
A139: E08 - tewerkstelling
A140: kies | C140: 0
A141: =IF(INPUT!$E$57=$A$109,"Minder dan 15 medewerkers",IF(INPUT!$E$57=$A$113,"Minder dan 3 medewerkers","Minder dan 4 medewerkers")) -> Minder dan 4 medewerkers | C141: 5
A142: =IF(INPUT!$E$57=$A$109,"Meer dan 15 medewerkers",IF(INPUT!$E$57=$A$113,"Meer dan 3 medewerkers","Meer dan 4 medewerkers")) -> Meer dan 4 medewerkers | C142: 0
A143: antwoord onbekend | C143: x
A144: E09 - groeimarge
A145: kies | C145: 0
A146: meer dan 100 procent | C146: 0
A147: 75 tot 100 procent | C147: =C150/4 -> 1.25
A148: 50 tot 75 procent | C148: =C150/4*2 -> 2.5
A149: 25 tot 50 procent | C149: =5/4*3 -> 3.75
A150: minder dan 25 procent | C150: 5
A151: antwoord onbekend | C151: x
A152: E10 - belastingen
A153: kies | C153: 0
A154: bovengemiddeld | C154: =5/3*1 -> 1.666666667
A155: gemiddeld | C155: =5/3*2 -> 3.333333333
A156: lager dan gemiddeld | C156: 5
A157: antwoord onbekend | C157: x
A158: E11 - gemeentelijke investeringen
A159: kies | C159: 0
A160: er zijn geen investeringen door de gemeente vereist | C160: 1
A161: er zijn minimale investeringen door de gemeente vereist | C161: 2
A162: er zijn aanzienlijke investeringen door de gemeente vereist | C162: 5
A163: antwoord onbekend | C163: x
A164: E12 - slijtage
A165: kies | C165: 0
A166: nihil | C166: 0
A167: gering | C167: =5/3 -> 1.666666667
A168: matig | C168: =5/3*2 -> 3.333333333
A169: groot | C169: 5
A170: antwoord onbekend | C170: x
A172: L01 - milieuvergunning
A173: kies | C173: 0
A174: geen meldingsplicht of milieuvergunning | C174: 0
A175: een meldingsplicht klasse 3 | C175: =5/3 -> 1.666666667
A176: een milieuvergunning klasse 2 | C176: =5/3*2 -> 3.333333333
A177: een milieuvergunning klasse 1 | C177: 5
A178: antwoord onbekend | C178: x
A179: L02 - gevaarlijke stoffen
A180: kies | C180: 0
A181: neen, de geplande activiteiten vereisen geen gevaarlijke stoffen | C181: 0
A182: ja, de geplande activiteiten vereisen gevaarlijke stoffen | C182: 5
A183: antwoord onbekend | C183: x
A184: L03 - luchtverontreiniging
A185: kies | C185: 0
A186: geen luchtverontreiniging | C186: 0
A187: beperkte luchtverontreiniging | C187: 2.5
A188: aanzienlijke luchtverontreiniging | C188: 5
A189: antwoord onbekend | C189: x
A190: L04 - stofhinder
A191: kies | C191: 0
A192: geen stofhinder | C192: 0
A193: beperkte stofhinder | C193: 2.5
A194: aanzienlijke stofhinder | C194: 5
A195: antwoord onbekend | C195: x
A196: L05 - geurhinder
A197: kies | C197: 0
A198: geen geurhinder | C198: 0
A199: beperkte geurhinder | C199: 2.5
A200: aanzienlijke geurhinder | C200: 5
A201: antwoord onbekend | C201: x
A202: L05 - lichthinder
A203: kies | C203: 0
... 86 more rows

Sheet Sheet1 (hidden)
C1: RUIMTELIJKE KENMERKEN
C2: =INPUT!$E$21 -> 0
B6: =VLOOKUP(INPUT!E33,Range_vlookup,3,FALSE) -> 0 | C6: =VLOOKUP(INPUT!E33,Range_vlookup,5,FALSE) -> 0
B7: =VLOOKUP(INPUT!E34,Range_vlookup,3,FALSE) -> 0 | C7: =VLOOKUP(INPUT!E34,Range_vlookup,5,FALSE) -> 0
B8: =VLOOKUP(INPUT!E36,Range_vlookup,3,FALSE) -> 0 | C8: =VLOOKUP(INPUT!E36,Range_vlookup,5,FALSE) -> 0
B9: =VLOOKUP(INPUT!E37,Range_vlookup,3,FALSE) -> 0 | C9: =VLOOKUP(INPUT!E37,Range_vlookup,5,FALSE) -> 0
C10: =VLOOKUP(INPUT!E38,Range_vlookup,5,FALSE) -> 0
C11: =VLOOKUP(INPUT!E40,Range_vlookup,5,FALSE) -> 0
B12: =VLOOKUP(INPUT!E44,Range_vlookup,3,FALSE) -> 0 | C12: =VLOOKUP(INPUT!E44,Range_vlookup,5,FALSE) -> 0
B13: =VLOOKUP(INPUT!E43,Range_vlookup,3,FALSE) -> 0 | C13: =VLOOKUP(INPUT!E43,Range_vlookup,5,FALSE) -> 0
C14: =VLOOKUP(INPUT!E39,Range_vlookup,5,FALSE) -> 0
B15: =VLOOKUP(INPUT!E46,Range_vlookup,3,FALSE) -> 0 | C15: =VLOOKUP(INPUT!E46,Range_vlookup,5,FALSE) -> 0
B16: =VLOOKUP(INPUT!E41,Range_vlookup,3,FALSE) -> 0 | C16: =VLOOKUP(INPUT!E41,Range_vlookup,5,FALSE) -> 0
B17: =VLOOKUP(INPUT!E45,Range_vlookup,3,FALSE) -> 0 | C17: =VLOOKUP(INPUT!E45,Range_vlookup,5,FALSE) -> 0

Sheet RESULTAAT
D10: =IF(INPUT!E21=0,"",INPUT!E21) -> 
J13: =TODAY() -> 2016-09-21
B15: =INPUT!B16 &" " &INPUT!B20 -> BASISGEGEVENS VAN DE LOCATIE | H15: =INPUT!B16 &" " &INPUT!B24 -> BASISGEGEVENS VAN DE GEÏNTERESSEERDE PARTIJ
B16: =INPUT!C21 -> Naam | D16: =IF(INPUT!E21=0,"",INPUT!E21) ->  | H16: =INPUT!C25 -> Naam | J16: =IF(INPUT!E25=0,"",INPUT!E25) -> 
B17: =INPUT!C22 -> Adres | D17: =IF(INPUT!E22=0,"",INPUT!E22) ->  | H17: =INPUT!C26 -> Adres | J17: =IF(INPUT!E26=0,"",INPUT!E26) -> 
B18: =INPUT!C23 -> Huidige eigenaar | D18: =IF(INPUT!E23=0,"",INPUT!E23) ->  | H18: =INPUT!C27 -> Contactpersoon | J18: =IF(INPUT!E27=0,"",INPUT!E27) -> 
H19: =INPUT!C28 -> Telefoon | J19: =IF(INPUT!E28=0,"",INPUT!E28) -> 
H20: =INPUT!C29 -> Email | J20: =IF(INPUT!E29=0,"",INPUT!E29) -> 
B23: RUIMTELIJK KENMERKEN | D23: SOCIALE KENMERKEN | F23: ECONOMISCHE KENMERKEN | H23: KENMERKEN LEEFMILIEU | J23: MOBILITEITSKENMERKEN
